bitfinex-derivatives/quotes_BTCF0:USTF0_20251128
["timestamp","ask_amount","ask_price","bid_price","bid_amount"]
[1764345603088,0.13949,92427.0,92426.0,0.04608]
[1764345603398,0.2028,92443.0,92416.0,0.01331]
[1764345603787,0.01358,92448.0,92416.0,0.01331]
[1764345604191,0.02318237,92433.0,92416.0,0.01331]
[1764345604394,0.04441237,92433.0,92432.0,0.04608]
[1764345604591,0.04441237,92433.0,92416.0,0.01331]
[1764345604789,0.04741237,92433.0,92416.0,0.01431]
[1764345604990,0.04425,92417.0,92416.0,0.04708]
[1764345605186,0.04425,92417.0,92416.0,0.001]
[1764345605386,0.04425,92406.0,92405.0,0.02295237]
[1764345605598,0.04425,92406.0,92405.0,0.00016237]
[1764345605800,0.04425,92406.0,92405.0,0.02295237]
[1764345606100,0.04425,92406.0,92405.0,0.04624237]
[1764345606300,0.04425,92406.0,92405.0,0.02295237]
[1764345606995,0.04425,92406.0,92405.0,0.00016237]
[1764345607200,0.04425,92406.0,92405.0,0.04624237]
[1764345607397,0.0550712,92411.0,92410.0,0.04608]
[1764345608200,0.04425,92411.0,92410.0,0.04608]
[1764345608591,0.04925,92411.0,92410.0,0.04708]
[1764345608802,0.07521,92411.0,92410.0,0.04708]
[1764345609801,0.07521,92411.0,92410.0,0.001]
[1764345611404,0.04925,92411.0,92410.0,0.001]
[1764345611599,0.04925,92411.0,92410.0,0.02379]
[1764345611903,0.04925,92411.0,92410.0,0.04708]
[1764345616008,0.005,92411.0,92410.0,0.04708]
[1764345617305,0.02648,92411.0,92410.0,0.04708]
[1764345617900,0.005,92411.0,92410.0,0.04708]
[1764345618708,0.04838,92411.0,92410.0,0.04708]
[1764345622012,0.04838,92411.0,92410.0,0.001]
[1764345622412,0.04338,92406.0,92405.0,0.00016237]
[1764345622608,0.0542018,92406.0,92405.0,0.00016237]
[1764345623011,0.0542018,92406.0,92405.0,0.04338237]
[1764345624112,0.0582018,92406.0,92405.0,0.00116237]
[1764345624912,0.0582018,92406.0,92405.0,0.04438237]
[1764345625112,0.04738,92406.0,92405.0,0.04438237]
[1764345626409,0.04738,92406.0,92405.0,0.06042276]
[1764345632023,0.004,92406.0,92405.0,0.06042276]
[1764345633012,0.05031,92406.0,92405.0,0.06042276]
[1764345633211,0.05031,92406.0,92405.0,0.01720276]
[1764345633411,0.05031,92406.0,92405.0,0.06023276]
[1764345635316,0.05031,92406.0,92405.0,0.01720276]
[1764345637519,0.05031,92406.0,92405.0,0.01206502]
[1764345637711,0.05031,92406.0,92390.0,0.29479796]
[1764345637712,0.0571335,92391.0,92390.0,0.24070581]
[1764345637911,0.0571335,92391.0,92390.0,0.04303]
[1764345639226,0.0108235,92391.0,92385.0,0.02115]
[1764345639418,0.04631,92382.0,92381.0,0.00016228]
[1764345639617,0.04631,92382.0,92381.0,0.04319228]
[1764345640218,0.04631,92382.0,92381.0,0.00016228]
[1764345640617,0.04731,92382.0,92381.0,0.00316228]
[1764345641217,0.0571347,92381.0,92380.0,0.01141832]
[1764345641413,0.0638662,92368.0,92366.0,0.00027066]
[1764345642011,0.0638662,92368.0,92367.0,0.02122966]
[1764345642225,0.0571362,92368.0,92367.0,0.02122966]
[1764345643734,0.0641362,92368.0,92367.0,0.03940018]
[1764345643921,0.0641362,92368.0,92367.0,0.06128018]
[1764345644121,0.0571362,92368.0,92367.0,0.05928018]
[1764345644327,0.0631362,92368.0,92367.0,0.06028018]
[1764345645618,0.0571362,92368.0,92367.0,0.05928018]
[1764345645817,0.0621362,92368.0,92367.0,0.06028018]
[1764345646223,0.0571362,92368.0,92367.0,0.05928018]
[1764345646420,0.0621362,92368.0,92367.0,0.06028018]
[1764345648428,0.0158262,92368.0,92367.0,0.06028018]
[1764345648626,0.0168262,92368.0,92367.0,0.06028018]
[1764345648929,0.006,92368.0,92367.0,0.06028018]
[1764345650130,0.0108262,92369.0,92368.0,0.04303]
[1764345651021,0.0571362,92369.0,92368.0,0.04303]
[1764345651327,0.0571362,92369.0,92368.0,0.0538562]
[1764345651328,0.004,92369.0,92368.0,0.0538562]
[1764345651722,0.0108253,92376.0,92375.0,0.0108254]
[1764345651925,0.0108253,92376.0,92375.0,0.0538554]
[1764345652125,0.01098767,92377.0,92376.0,0.04303]
[1764345652327,0.05729767,92377.0,92376.0,0.04303]
[1764345652530,0.0571362,92368.0,92367.0,0.05928018]
[1764345653327,0.0340662,92368.0,92367.0,0.05928018]
[1764345653626,0.0571362,92368.0,92367.0,0.05928018]
[1764345654235,0.0601362,92368.0,92367.0,0.05928018]
[1764345654934,0.0601362,92368.0,92367.0,0.07010648]
[1764345655325,0.0370662,92368.0,92367.0,0.05928018]
[1764345657118,0.0601362,92368.0,92367.0,0.05928018]
[1764345658631,0.0601362,92368.0,92367.0,0.03740018]
[1764345658833,0.0601362,92368.0,92367.0,0.05928018]
[1764345659131,0.04931,92368.0,92367.0,0.05928018]
[1764345659733,0.02624,92368.0,92367.0,0.05928018]
[1764345659929,0.003,92368.0,92367.0,0.05928018]
[1764345661140,0.0627,92368.0,92367.0,0.01625018]
[1764345662634,0.22442,92368.0,92367.0,0.01625018]
[1764345662937,0.22027,92368.0,92367.0,0.06065018]
[1764345663139,0.22027,92368.0,92367.0,0.01625018]
[1764345663433,0.0562573,92359.0,92358.0,0.00016237]
[1764345664243,0.0562573,92359.0,92328.0,0.01]
[1764345664244,0.0330798,92337.0,92336.0,0.05759]
[1764345664434,0.0562598,92337.0,92336.0,0.05759]
[1764345664634,0.05633946,92337.0,92336.0,0.05759]
[1764345664843,0.04550966,92337.0,92336.0,0.05759]
[1764345665439,7.966e-05,92337.0,92336.0,0.07346421]
[1764345666751,7.966e-05,92337.0,92336.0,0.07446421]
[1764345667543,7.966e-05,92337.0,92336.0,0.08529421]
[1764345668649,7.966e-05,92337.0,92336.0,0.07446421]
[1764345670848,0.02232966,92337.0,92336.0,0.07446421]
[1764345671056,0.04550966,92337.0,92336.0,0.07446421]
[1764345671550,0.02232966,92337.0,92336.0,0.07446421]
[1764345672139,0.04550966,92337.0,92336.0,0.06127421]
[1764345672755,0.04550966,92337.0,92336.0,0.03999421]
[1764345673744,0.04550966,92337.0,92336.0,0.06127421]
[1764345675254,0.04550966,92337.0,92336.0,0.01687421]
[1764345675549,0.02232966,92337.0,92336.0,0.07273421]
[1764345676146,0.04445966,92337.0,92336.0,0.07273421]
[1764345676850,0.02232966,92337.0,92336.0,0.07273421]
[1764345677052,7.966e-05,92337.0,92336.0,0.07273421]
[1764345677554,7.966e-05,92337.0,92336.0,0.08356421]
[1764345677851,7.966e-05,92337.0,92336.0,0.07273421]
[1764345678255,0.04512966,92337.0,92336.0,0.06002421]
[1764345678447,0.04512966,92337.0,92336.0,0.01687421]
[1764345678761,0.04512966,92337.0,92336.0,0.06002421]
[1764345679059,0.02299966,92337.0,92336.0,0.07273421]
[1764345679655,0.02299966,92337.0,92336.0,0.07173421]
[1764345679848,0.04512966,92337.0,92336.0,0.07273421]
[1764345680756,0.02299966,92337.0,92336.0,0.07273421]
[1764345681161,0.04512966,92337.0,92336.0,0.07273421]
[1764345681454,7.966e-05,92337.0,92336.0,0.07273421]
[1764345682052,0.04512966,92337.0,92336.0,0.01687421]
[1764345682357,0.04512966,92337.0,92336.0,0.06002421]
[1764345684555,0.04512966,92337.0,92336.0,0.03812421]
[1764345684760,0.04512966,92337.0,92336.0,0.01687421]
[1764345684961,0.21612966,92337.0,92336.0,0.01687421]
[1764345685863,0.24373412,92337.0,92336.0,0.01687421]
[1764345686159,0.0558808,92329.0,92328.0,0.01]
[1764345686357,0.05596046,92329.0,92328.0,0.01]
[1764345687252,0.05596046,92329.0,92328.0,0.03125]
[1764345687853,0.05596046,92329.0,92328.0,0.06586]
[1764345688061,0.04512966,92329.0,92328.0,0.08159206]
[1764345688262,0.21612966,92329.0,92328.0,0.08159206]
[1764345689962,0.21712966,92329.0,92328.0,0.08159206]
[1764345690457,0.21712966,92329.0,92328.0,0.06888206]
[1764345690651,0.21712966,92329.0,92328.0,0.02573206]
[1764345691052,0.21712966,92329.0,92328.0,0.04698206]
[1764345691252,0.21712966,92329.0,92328.0,0.06888206]
[1764345692862,0.21712966,92329.0,92328.0,0.02573206]
[1764345694365,0.21712966,92329.0,92328.0,0.04793206]
[1764345694867,0.21712966,92329.0,92328.0,0.06930206]
[1764345695061,0.21712966,92329.0,92328.0,0.08199206]
[1764345695455,0.21712966,92329.0,92328.0,0.06930206]
[1764345696869,0.21712966,92329.0,92328.0,0.02573206]
[1764345700564,0.21712966,92329.0,92328.0,0.06930206]
[1764345700765,0.24473454,92329.0,92328.0,0.06930206]
[1764345700961,0.24473454,92329.0,92328.0,0.02573206]
[1764345701861,0.24473454,92329.0,92328.0,0.06930206]
[1764345702063,0.24373454,92329.0,92328.0,0.08199206]
[1764345702667,0.24373454,92329.0,92328.0,0.02573206]
[1764345702863,0.24373454,92329.0,92309.0,0.00420343]
[1764345702864,0.04483,92327.0,92309.0,0.00420343]
[1764345703065,0.055663,92310.0,92309.0,0.04777343]
[1764345703270,0.05574266,92310.0,92309.0,0.04777343]
[1764345703670,0.04490966,92310.0,92309.0,0.06305366]
[1764345703877,0.04490966,92310.0,92309.0,0.06805366]
[1764345704370,0.04490966,92310.0,92309.0,0.02448366]
[1764345704675,0.07251174,92310.0,92309.0,0.02448366]
[1764345705470,0.07351174,92310.0,92309.0,0.02348366]
[1764345705665,0.07351174,92310.0,92309.0,1e-08]
[1764345707079,0.07343208,92310.0,92309.0,1e-08]
[1764345707272,0.04483,92287.0,92286.0,0.0438409]
[1764345707474,0.04490966,92287.0,92286.0,0.0438409]
[1764345708569,0.04490966,92287.0,92286.0,0.0538409]
[1764345708777,0.04590966,92287.0,92286.0,0.0324709]
[1764345708971,0.04590966,92287.0,92286.0,0.0102709]
[1764345709374,0.04590966,92287.0,92286.0,0.0538409]
[1764345709684,0.04590966,92287.0,92286.0,0.0102709]
[1764345710078,0.04590966,92287.0,92286.0,0.0538409]
[1764345710276,0.04590966,92287.0,92286.0,0.0082709]
[1764345710479,0.0556678,92270.0,92269.0,0.04357]
[1764345710782,0.0556678,92270.0,92269.0,0.0222]
[1764345710978,0.0556678,92270.0,92256.0,0.01269]
[1764345711179,0.04483,92257.0,92240.0,0.01269]
[1764345711385,0.04483,92247.0,92224.0,0.01269]
[1764345711678,0.04483,92247.0,92230.0,0.24911549]
[1764345711679,0.04491481,92247.0,92230.0,0.24911549]
[1764345711875,0.04491481,92247.0,92246.0,0.01557379]
[1764345712382,0.0108418,92235.0,92224.0,0.01269]
[1764345712579,0.0556718,92235.0,92234.0,0.0222]
[1764345712780,0.04483,92225.0,92224.0,0.05626]
[1764345713282,0.06832,92226.0,92225.0,0.04357]
[1764345713680,0.04491196,92235.0,92234.0,0.04357]
[1764345714579,0.19333196,92235.0,92234.0,0.04357]
[1764345714787,0.17212196,92235.0,92234.0,0.05057]
[1764345714994,0.00108196,92235.0,92234.0,0.05057]
[1764345715188,0.05840196,92235.0,92234.0,0.05057]
[1764345715381,0.00108196,92235.0,92234.0,0.05057]
[1764345715780,0.00016256,92239.0,92238.0,0.04357]
[1764345716883,0.00024607,92239.0,92238.0,0.04357]
[1764345717879,0.00024607,92239.0,92238.0,0.04457]
[1764345718076,0.00124607,92239.0,92238.0,0.05057]
[1764345719985,0.00124607,92239.0,92238.0,0.0614115]
[1764345721585,0.0108372,92275.0,92238.0,0.0614115]
[1764345721586,0.01084,92251.0,92250.0,0.05687]
[1764345721786,0.13684,92251.0,92250.0,0.05687]
[1764345722094,0.15823,92251.0,92250.0,0.05687]
[1764345722294,0.18147,92251.0,92250.0,0.05687]
[1764345722990,0.18247,92251.0,92250.0,0.05887]
[1764345723200,0.22759,92251.0,92250.0,0.05887]
[1764345724092,0.22759,92251.0,92250.0,0.002]
[1764345724393,0.25790223,92251.0,92250.0,0.002]
[1764345724602,0.25790223,92251.0,92250.0,0.02316]
[1764345725600,0.25790223,92251.0,92250.0,0.04517]
[1764345726502,0.22382223,92251.0,92250.0,0.04517]
[1764345726795,0.07594223,92251.0,92250.0,0.04517]
[1764345726990,0.17478223,92251.0,92250.0,0.04517]
[1764345727391,0.24706223,92251.0,92250.0,0.04517]
[1764345728996,0.24706223,92251.0,92250.0,0.06119676]
[1764345729898,0.24706223,92251.0,92241.0,0.00016256]
[1764345729899,0.055471,92242.0,92241.0,0.00016256]
[1764345730123,0.02139,92217.0,92216.0,0.05687]
[1764345730603,0.02139,92217.0,92216.0,0.0731505]
[1764345730804,0.04463,92217.0,92216.0,0.0731505]
[1764345731212,0.04463,92217.0,92216.0,0.0594505]
[1764345731416,0.07500402,92217.0,92216.0,0.0162805]
[1764345731615,0.0554751,92207.0,92206.0,0.00027113]
[1764345731918,0.0554772,92189.0,92188.0,0.02124943]
[1764345732117,0.25089122,92189.0,92188.0,0.01680336]
[1764345733016,0.02139,92179.0,92170.0,0.19836387]
[1764345733318,0.04463,92179.0,92178.0,0.05687]
[1764345733515,0.07500741,92179.0,92178.0,0.05687]
[1764345733914,0.05186077,92179.0,92178.0,0.05687]
[1764345734511,0.03247077,92179.0,92178.0,0.06787]
[1764345734818,0.03247077,92179.0,92178.0,0.06987]
[1764345735210,0.07727077,92179.0,92178.0,0.06987]
[1764345735614,0.03247077,92179.0,92178.0,0.06987]
[1764345736215,0.07727077,92179.0,92178.0,0.06987]
[1764345736411,0.07727077,92179.0,92178.0,0.05617]
[1764345737018,0.08811917,92179.0,92178.0,0.05617]
[1764345737222,0.08811917,92179.0,92178.0,0.07229205]
[1764345738225,0.08811917,92179.0,92178.0,0.02912205]
[1764345738531,0.04331917,92179.0,92178.0,0.07330205]
[1764345739025,0.21451917,92179.0,92178.0,0.08659205]
[1764345739230,0.23612917,92179.0,92178.0,0.08659205]
[1764345739813,0.23612917,92179.0,92178.0,0.08559205]
[1764345740117,0.25931917,92179.0,92178.0,0.02812205]
[1764345740420,0.25931917,92179.0,92178.0,0.02412205]
[1764345740816,0.25931917,92179.0,92178.0,0.06830205]
[1764345741119,0.03247077,92179.0,92178.0,0.08159205]
[1764345741326,0.00016266,92198.0,92178.0,0.08159205]
[1764345741327,0.00016266,92198.0,92197.0,0.04418]
[1764345741623,0.02177266,92198.0,92197.0,0.04418]
[1764345742415,0.00016266,92198.0,92197.0,0.04418]
[1764345743212,0.02177266,92198.0,92197.0,0.04418]
[1764345743418,0.04496266,92198.0,92197.0,0.04418]
[1764345743818,0.05096266,92198.0,92197.0,0.04618]
[1764345744021,0.00716266,92198.0,92197.0,0.04618]
[1764345744215,0.00716266,92198.0,92197.0,0.40618]
[1764345744415,0.02161,92222.0,92221.0,0.04418]
[1764345744624,0.216,92222.0,92221.0,0.04418]
[1764345745128,0.0448,92222.0,92221.0,0.04418]
[1764345745319,0.216,92222.0,92221.0,0.04418]
[1764345745526,0.0448,92210.0,92209.0,0.04418]
[1764345746024,0.0556428,92218.0,92217.0,0.02246]
[1764345746227,0.04496266,92231.0,92230.0,0.04418]
[1764345746427,0.00016266,92231.0,92230.0,0.05119]
[1764345746930,0.15184,92238.0,92230.0,0.05119]
[1764345746931,0.0324501,92241.0,92240.0,0.04418]
[1764345747129,0.0108392,92248.0,92240.0,0.04418]
[1764345747425,0.0448,92239.0,92238.0,0.24254387]
[1764345747628,0.0448,92239.0,92238.0,0.04418]
[1764345748332,0.0556403,92239.0,92238.0,0.04418]
[1764345748718,0.02161,92230.0,92229.0,0.22082387]
[1764345748927,0.0324511,92233.0,92232.0,0.04418]
[1764345749129,0.0324517,92227.0,92226.0,0.04418]
[1764345749336,0.0556417,92227.0,92226.0,0.04418]
[1764345749527,0.0448,92227.0,92226.0,0.04418]
[1764345750030,0.0324511,92232.0,92231.0,0.04418]
[1764345750230,0.1180411,92232.0,92231.0,0.04418]
[1764345750727,0.0448,92232.0,92231.0,0.04418]
[1764345751327,0.001,92239.0,92238.0,0.04418]
[1764345751525,0.08744,92239.0,92238.0,0.04418]
[1764345751729,0.13021,92239.0,92238.0,0.04418]
[1764345751929,0.001,92239.0,92238.0,0.0550204]
[1764345752233,0.001,92239.0,92238.0,0.04418]
[1764345752633,0.18204,92241.0,92240.0,0.04314]
[1764345752933,0.20449,92241.0,92240.0,0.04314]
[1764345753228,0.03329,92241.0,92240.0,0.04314]
[1764345753432,0.0618553,92241.0,92240.0,0.04314]
[1764345753629,0.0618553,92241.0,92238.0,0.001]
[1764345753630,0.04361,92239.0,92238.0,0.001]
[1764345753939,0.0285653,92239.0,92229.0,0.19836387]
[1764345754134,0.0332911,92232.0,92231.0,0.04314]
[1764345754438,0.0332911,92232.0,92221.0,0.01642387]
[1764345754439,0.0108418,92226.0,92221.0,0.01642387]
[1764345754626,0.04361,92222.0,92221.0,0.05956387]
[1764345756137,0.04361,92227.0,92226.0,0.04314]
[1764345756329,0.0544517,92227.0,92226.0,0.04314]
[1764345756536,0.04361,92227.0,92226.0,0.04314]
[1764345757331,0.02245,92227.0,92226.0,0.04314]
[1764345757526,0.05828,92228.0,92227.0,0.04314]
[1764345758236,0.0108415,92229.0,92228.0,0.04314]
[1764345758638,0.0332915,92229.0,92228.0,0.04314]
[1764345758939,0.0544515,92229.0,92228.0,0.04314]
[1764345760031,0.0108415,92229.0,92228.0,0.04314]
[1764345760235,0.0332904,92238.0,92237.0,0.02188]
[1764345760433,0.02261266,92248.0,92247.0,0.04314]
[1764345760626,0.1731878,92248.0,92247.0,0.04314]
[1764345760827,0.0831878,92248.0,92247.0,0.04314]
[1764345761029,0.2543478,92248.0,92247.0,0.04314]
[1764345761224,0.0108402,92240.0,92238.0,0.19836387]
[1764345761425,0.0332902,92240.0,92239.0,0.04314]
[1764345761631,0.0544512,92231.0,92230.0,0.02188]
[1764345761834,0.0544512,92231.0,92230.0,0.04314]
[1764345762029,0.04361,92231.0,92230.0,0.04314]
[1764345763331,0.0544516,92228.0,92227.0,0.04314]
[1764345764641,0.0554516,92228.0,92227.0,0.04814]
[1764345764937,0.0554516,92228.0,92227.0,0.005]
[1764345765941,0.0544523,92222.0,92221.0,0.01642387]
[1764345766630,0.04361,92222.0,92221.0,0.01642387]
[1764345767035,0.04361,92222.0,92221.0,0.05956387]
[1764345767233,0.07925,92222.0,92221.0,0.06656387]
[1764345767434,0.04461,92222.0,92221.0,0.06756387]
[1764345767834,0.17413,92222.0,92221.0,0.06756387]
[1764345768836,0.04461,92222.0,92221.0,0.06756387]
[1764345769141,0.19873,92222.0,92221.0,0.06756387]
[1764345769542,0.20341,92222.0,92221.0,0.02442387]
[1764345769842,0.20429,92222.0,92221.0,0.06756387]
[1764345770538,0.001,92222.0,92221.0,0.06756387]
[1764345771036,0.00016266,92248.0,92239.0,0.04314]
[1764345771037,0.05733,92240.0,92239.0,0.04314]
[1764345771236,0.1710101,92240.0,92239.0,0.04314]
[1764345771442,0.2393301,92240.0,92239.0,0.04314]
[1764345771644,0.0681701,92240.0,92239.0,0.04314]
[1764345772239,0.09684707,92240.0,92239.0,0.04314]
[1764345772545,0.08600697,92240.0,92239.0,0.04314]
[1764345772844,0.05733,92240.0,92239.0,0.04314]
[1764345773038,0.05733,92240.0,92239.0,0.02188]
[1764345773039,0.08600856,92240.0,92239.0,0.02188]
[1764345773239,0.04361,92231.0,92230.0,0.22024387]
[1764345773439,0.04361,92231.0,92230.0,0.04314]
[1764345773840,0.0108416,92228.0,92224.0,0.04314]
[1764345774041,0.01372,92230.0,92221.0,0.01642387]
[1764345774042,0.04361,92222.0,92221.0,0.01642387]
[1764345774433,0.07231531,92222.0,92221.0,0.01642387]
[1764345775848,0.07231531,92222.0,92221.0,0.01742387]
[1764345776733,0.24347531,92222.0,92221.0,0.01742387]
[1764345776939,0.24447531,92222.0,92221.0,0.02242387]
[1764345779636,0.07331531,92222.0,92221.0,0.02242387]
[1764345779844,0.01372,92214.0,92195.0,0.0108454]
[1764345780034,0.01372,92214.0,92204.0,0.02188]
[1764345780035,0.01372,92205.0,92204.0,0.02188]
[1764345780234,0.05733,92205.0,92204.0,0.04314]
[1764345780642,0.04361,92205.0,92204.0,0.04314]
[1764345782246,0.04361,92205.0,92204.0,0.0549844]
[1764345782447,0.02228266,92214.0,92213.0,0.04557]
[1764345782653,0.04440266,92214.0,92213.0,0.04557]
[1764345783040,0.04340266,92214.0,92213.0,0.04557]
[1764345783447,0.04340266,92214.0,92213.0,0.02286]
[1764345783848,0.05661,92205.0,92204.0,0.25053503]
[1764345784052,0.05661,92205.0,92204.0,0.001]
[1764345784446,0.05661,92205.0,92204.0,0.02286]
[1764345784652,0.05661,92205.0,92204.0,0.04557]
[1764345785344,0.05661,92205.0,92204.0,0.001]
[1764345785846,0.0674543,92205.0,92204.0,0.001]
[1764345786357,0.05661,92205.0,92204.0,0.001]
[1764345786560,0.05761,92205.0,92204.0,0.007]
[1764345788046,0.05761,92205.0,92204.0,0.02331267]
[1764345788651,0.001,92205.0,92204.0,0.07972707]
[1764345791244,0.00016266,92214.0,92213.0,0.0564133]
[1764345791645,0.00016266,92214.0,92213.0,0.4164133]
[1764345792056,0.00016266,92214.0,92213.0,0.0664133]
[1764345792360,0.00016266,92214.0,92213.0,0.3774133]
[1764345792859,0.05677266,92214.0,92213.0,0.001]
[1764345793054,0.04340266,92214.0,92213.0,0.04657]
[1764345793451,0.04440266,92214.0,92213.0,0.04957]
[1764345794553,0.02228266,92214.0,92213.0,0.04957]
[1764345795653,0.00116266,92214.0,92213.0,0.39957]
[1764345796461,0.04625266,92214.0,92213.0,0.04957]
[1764345796652,0.05936266,92214.0,92213.0,0.02686]
[1764345797452,0.05936266,92214.0,92213.0,0.04947]
[1764345797948,0.00116266,92214.0,92213.0,0.04947]
[1764345798656,0.0559312,92232.0,92231.0,0.02189]
[1764345798857,0.08416854,92232.0,92231.0,0.0445]
[1764345799658,0.0559312,92232.0,92231.0,0.0445]
[1764345800059,0.04509,92232.0,92231.0,0.0445]
[1764345800262,0.04509,92232.0,92231.0,0.0455]
[1764345800263,0.04809,92232.0,92231.0,0.0455]
[1764345800862,0.04809,92232.0,92231.0,0.001]
[1764345803665,0.07633199,92232.0,92231.0,0.001]
[1764345803855,0.08944199,92232.0,92231.0,0.001]
[1764345805063,0.08944199,92232.0,92231.0,0.02289]
[1764345805363,0.07633199,92232.0,92231.0,0.0455]
[1764345805559,0.04809,92232.0,92231.0,0.0455]
[1764345805756,0.0612,92232.0,92231.0,0.0455]
[1764345805964,0.08978355,92232.0,92231.0,0.0455]
[1764345806358,0.08978355,92232.0,92231.0,0.02289]
[1764345806553,0.08978355,92232.0,92231.0,0.01824281]
[1764345812258,0.08978355,92232.0,92231.0,2.81e-06]
[1764345812466,0.05636,92223.0,92222.0,0.00016266]
[1764345812668,0.09578565,92223.0,92222.0,1e-08]
[1764345814863,0.09678565,92223.0,92222.0,0.00100001]
[1764345816876,0.09678565,92223.0,92222.0,0.04517001]
[1764345816877,0.08662565,92223.0,92222.0,0.04517001]
[1764345817073,0.25778565,92223.0,92222.0,0.04517001]
[1764345817371,0.25778565,92223.0,92222.0,0.00100001]
[1764345817976,0.25778565,92223.0,92222.0,0.04517001]
[1764345818275,0.25778565,92223.0,92222.0,0.02265001]
[1764345819872,0.22361355,92223.0,92222.0,0.04517001]
[1764345820068,0.001,92223.0,92222.0,0.46517001]
[1764345820268,0.001,92223.0,92222.0,0.12517001]
[1764345820777,0.0108388,92252.0,92240.0,0.05661]
[1764345820979,0.0570388,92252.0,92251.0,0.04417]
[1764345821168,0.01345,92264.0,92240.0,0.04417]
[1764345821169,0.0462,92241.0,92240.0,0.04417]
[1764345821869,0.05704,92241.0,92240.0,0.04417]
[1764345822074,0.0522,92241.0,92240.0,0.04517]
[1764345823874,0.02887,92241.0,92240.0,0.04517]
[1764345824067,0.006,92241.0,92240.0,0.04517]
[1764345828681,0.006,92241.0,92240.0,0.06231611]
[1764345831075,0.0522,92241.0,92240.0,0.06231611]
[1764345831779,0.02887,92241.0,92240.0,0.06231611]
[1764345832283,0.006,92241.0,92240.0,0.06231611]
[1764345833877,0.006,92241.0,92240.0,0.07538611]
[1764345837779,0.0522,92241.0,92240.0,0.06231611]
[1764345837976,0.0522,92241.0,92240.0,0.07538611]
[1764345838485,0.0522,92241.0,92240.0,0.06231611]
[1764345838879,0.0522,92241.0,92240.0,0.07538611]
[1764345839681,0.0522,92241.0,92240.0,0.06231611]
[1764345839883,0.006,92241.0,92240.0,0.07538611]
[1764345840774,0.01100176,92250.0,92249.0,0.04417]
[1764345840981,0.00016266,92250.0,92249.0,0.04417]
[1764345841174,0.0462,92269.0,92268.0,0.04417]
[1764345841477,0.1361785,92310.0,92268.0,0.04417]
[1764345841478,0.07781632,92300.0,92285.0,0.04417]
[1764345841678,0.01345,92304.0,92285.0,0.04417]
[1764345841885,0.01345,92304.0,92285.0,0.0550049]
[1764345842076,0.01345,92304.0,92285.0,0.04417]
[1764345842289,0.00016256,92295.0,92285.0,0.04417]
[1764345842982,0.00016256,92295.0,92294.0,0.04558]
[1764345844279,0.00116256,92295.0,92294.0,0.04758]
[1764345846786,0.02136256,92295.0,92294.0,0.04758]
[1764345846992,0.04559256,92295.0,92294.0,0.04758]
[1764345847388,0.04559256,92295.0,92294.0,0.04558]
[1764345847389,0.04459256,92295.0,92294.0,0.04558]
[1764345847588,0.04559256,92295.0,92294.0,0.06431567]
[1764345848189,0.04459256,92295.0,92294.0,0.06331567]
[1764345850193,0.04559256,92295.0,92294.0,0.06231567]
[1764345850392,0.04859256,92295.0,92294.0,0.06331567]
[1764345850587,0.02536256,92295.0,92294.0,0.06331567]
[1764345851491,0.04859256,92295.0,92294.0,0.06331567]
[1764345851698,0.06259256,92295.0,92294.0,0.01773567]
[1764345852386,0.06259256,92295.0,92294.0,0.04002567]
[1764345852784,0.06259256,92295.0,92294.0,0.01773567]
[1764345853891,0.04859256,92295.0,92294.0,0.06331567]
[1764345854292,0.05711256,92295.0,92294.0,0.06331567]
[1764345854488,0.05711256,92295.0,92294.0,0.04002567]
[1764345855786,0.05711256,92295.0,92294.0,0.01773567]
[1764345857390,0.05711256,92295.0,92270.0,0.19834478]
[1764345857391,0.04372,92277.0,92270.0,0.19834478]
[1764345857591,0.0545558,92277.0,92270.0,0.19834478]
[1764345857797,0.0545558,92277.0,92276.0,0.04408256]
[1764345858999,0.0545558,92277.0,92276.0,0.04708256]
[1764345859193,0.0555558,92277.0,92276.0,0.0644673]
[1764345862395,0.0555558,92277.0,92276.0,0.0205473]
[1764345863202,0.08579604,92277.0,92276.0,0.0185473]
[1764345863404,0.0545589,92251.0,92250.0,0.24226478]
[1764345863598,0.04372,92251.0,92250.0,0.04392]
[1764345863903,0.0108384,92255.0,92250.0,0.04392]
[1764345864103,0.0545584,92255.0,92254.0,0.04392]
[1764345865905,0.0555584,92255.0,92254.0,0.04792]
[1764345866302,0.0118384,92255.0,92254.0,0.04792]
[1764345866607,0.001,92255.0,92254.0,0.04792]
[1764345870903,0.001,92255.0,92254.0,0.04792]
[1764345876006,0.001,92255.0,92254.0,0.0587585]
[1764345877206,0.0118384,92255.0,92254.0,0.04792]
[1764345878409,0.0331884,92255.0,92254.0,0.04792]
[1764345878598,0.0555384,92255.0,92254.0,0.04792]
[1764345878805,0.0555384,92255.0,92254.0,0.004]
[1764345879098,0.4555384,92255.0,92254.0,0.004]
[1764345879315,0.48379945,92255.0,92254.0,0.004]
[1764345879814,0.0545391,92249.0,92248.0,0.0171052]
[1764345880004,0.0437,92247.0,92246.0,0.00027102]
[1764345881006,0.0437,92247.0,92246.0,0.04494102]
[1764345881207,0.0555391,92249.0,92248.0,0.05826]
[1764345881519,0.0118391,92249.0,92248.0,0.05826]
[1764345881911,0.0331891,92249.0,92248.0,0.05826]
[1764345882204,0.0555391,92249.0,92248.0,0.05826]
[1764345882609,0.0437,92247.0,92246.0,0.01836979]
[1764345882811,0.0437,92247.0,92246.0,0.03992979]
[1764345883210,0.0447,92247.0,92246.0,0.04292979]
[1764345883518,0.0447,92247.0,92246.0,0.06603979]
[1764345883912,0.0447,92247.0,92246.0,0.06703979]
[1764345885514,0.001,92247.0,92246.0,0.06703979]
[1764345886618,0.0447,92247.0,92246.0,0.06703979]
[1764345890011,0.001,92247.0,92246.0,0.06703979]
[1764345892213,0.0447,92247.0,92246.0,0.06703979]
[1764345894527,0.02235,92247.0,92246.0,0.06703979]
[1764345895226,0.001,92247.0,92246.0,0.06703979]
[1764345895417,0.0118393,92247.0,92246.0,0.06703979]
[1764345898124,0.0555393,92247.0,92246.0,0.06703979]
[1764345899628,0.0331893,92247.0,92246.0,0.06703979]
[1764345900026,0.0118393,92247.0,92246.0,0.06703979]
[1764345900821,0.001,92247.0,92246.0,0.07787919]
[1764345901028,0.0118393,92247.0,92246.0,0.06703979]
[1764345901329,0.0118393,92247.0,92246.0,0.07787919]
[1764345901722,0.0118393,92247.0,92246.0,0.06703979]
[1764345902028,0.001,92247.0,92246.0,0.06703979]
[1764345902621,0.0118393,92247.0,92246.0,0.06703979]